{"text_format":"1","workbook":"xlsx","n_sheets":3,"sheets":["بيانات","البيع","فاتورة"],"not_rendered":{"charts":0,"images":0,"macros":0,"external_links":1,"defined_names":10,"comments":0,"pivot_tables":0},"unopened":[],"bounds":{"document_bytes":16777216,"sheet_cells":100000,"rows_first":2000,"rows_last":500,"rows_between":2000,"halvings":0,"cell_chars":16384,"cell_head_chars":4096},"cells_cut":0,"cells_raw":0,"read":"whole","date_system":"1900"}

{"sheet":"بيانات","index":0,"n_rows":51,"n_cols":11,"rows_kept":51,"cut":false,"hidden":false,"merged":[]}
["Group",null,null,"منظفات وصابون","عصائر ومشروبات ","منتجات ألبان","معلبات","زيت وسمنة","مقرمشات وتسالى","ورقيات وحفاضات","متفرقات"]
["منظفات وصابون",null,null,"اوكسى 60 جرام","كنز فيروز جيب","لبن بخيرة","فيجيتار علبة ( بارد او حار ) 228","زيت تحيا مصر","هوهوز","حفاضة سلفى مقاس  4","موس حلاقة لورد"]
["عصائر ومشروبات ",null,null,"اوكسى 95 جرام","كنز فيروز كبير","لبن بودر  الاساس شريط  265","بكينج باودر تاج الملوك 600","زيت سندباد 1 لتر","تونكيز","حفاضة سلفى مقاس  5","مكن حلاقة "]
["منتجات ألبان",null,null,"اوكسى 170 جرام","كنز شويبس","جبنة عبور لاند 1/8","فانيليا  تاج الملوك 615","زيت حلوة 700 ملى","شيبسى اصلى ","حفاضة هالو بيبى مقاس 4","سلك مواعين"]
["معلبات",null,null,"اوكسى 350 جرام","كنز بيبسى جيب","جبنة عبور لاند 1/4","نسكافية بارليكو 2*1 ","زيت درة 1 لتر","شيبسى اصلى ","حفاضة هالو بيبى مقاس 5","كوب شاى"]
["زيت وسمنة",null,null,"اوكسى 600 جرام","كنز بيبسى كبير","جبنة عبور لاند 1/2","نسكافية كوفى مكس","زيت عافية 1 لتر","شيبسى اصلى ","حفاضة فاير بيبى مقاس 5"]
["مقرمشات وتسالى",null,null,"اوكسى 825 جرام","كنز كوكاكولا جيب","جبنة ديرى 1/4","نسكافية بارليكو 2*1 ","زيت عافية 3 لتر","شيبسى اصلى ","اولويز صغير "]
["ورقيات وحفاضات",null,null,"اوكسى 1100 جرام","كنز كوكاكولا كبير","جبنة ديرى 1/2","نسكافية كوفى مكس","زيت الممتاز","شيبسى اصلى ","اولويز كبير "]
["متفرقات",null,null,"اريال 50 جرام","كنز بريل","جبنة جبنتى 1/4","شاى ليبتون 250 جرام","زيت رامبو","دوريتوس","منديل فاين"]
[null,null,null,"اريال 165 جرام","كنز رانى","جبنة جبنتى 1/8","شاى ليبتون 40 جرام","زيت قلية 3/4 لتر","دوريتوس","ورق جرايد "]
[null,null,null,"اريال 350 جرام","مياه معدنية دانه","جبنة دومتى 80 جرام","شاى العروسة 250 جرام","سمنة كريستال 1 كيلو","دوريتوس"]
[null,null,null,"اريال 1 كيلو","مياه معدنية بيورتى","جبنة طعمة مثلثات","شاى العروسة 40 جرام","سمنة كريستال 2 كيلو","دوريتوس"]
[null,null,null,"اريال 2.5 كيلو","كوكاكولا 1.5 لتر - عرض","جبنة طعمة مثلثات","شاى العروسة ","سمنة كريستال 3 كيلو","بافس"]
[null,null,null,"اريال 9 كيلو","كوكاكولا 2 لتر   - عرض",null,"بن عبد المعبود محوج  100 جرام","سمنة روابى 1 كيلو","مينى شيتوس"]
[null,null,null,"برسيل جيل أسود","بييبسى 1 لتر",null,"تونة قطع توليدو","سمنة روابى 2 كيلو","مينى شيتوس"]
[null,null,null,"برسيل جيل ألوان","بييبسى 2 لتر",null,"تونة ليزا بارد مفتتة ","سمنة جنة 2 كيلو","بططسينو"]
[null,null,null,"برسيل 50 جرام","فيروز 1 لتر",null,"تونة ليزا حار مفتتة ","سمنة جنة 1 كيلو","بططسينو"]
[null,null,null,"برسيل 170 جرام","شويبس 1 لتر",null,"صلصة برطمان","سمنة الدوار 3 كيلو","جوليو"]
[null,null,null,"برسيل 350 جرام","هاى سبورت 2 لتر",null,"صلصة ظرف","سمنة صفايح ","جوليو"]
[null,null,null,"برسيل 3 كيلو - عرض","هاى سبورت 1 لتر",null,"صلصة ظرف","زيت  المتحدة 1 لتر","جوليو"]
[null,null,null,"برسيل 8 كيلو اوتوماتيك","عصير بخيرة",null,"كاتشب ظرف 280",null,"زجزاج"]
[null,null,null,"صابونة دوش","عصير برافو ( 2 جنية )",null,"كاتشب حار 500 مل",null,"قلابظ"]
[null,null,null,"صابونة سافانا","عصير بيتى",null,"كاتشب بارد 500 مل",null,"شكشك"]
[null,null,null,"صابونة لوكس","عصير برافو  ( 1 جنية )",null,"اندومى صغير ",null,"فلامنكو"]
[null,null,null,"صابونة كامى","عصير كل يوم",null,"اندومى جامبو ",null,"صن بايتس"]
[null,null,null,"صابونة غسيل","عصير الواحة 4 كيلو",null,"اندومى صغير سجق",null,"بسكويت لمبادا"]
[null,null,null,"صابونة غسيل","عصير الواحة 5 كيلو",null,"مرقة دجاج شريط",null,"بسكويت لمبادا"]
[null,null,null,"ليدر 1/2  كيلو","عصير الواحة 10 كيلو ( فرط )",null,"مرقة دجاج شريط  229",null,"بسكويت اهلاوى"]
[null,null,null,"ليدر 1 كيلو","سوبيا كيس",null,"حلاوة طحينية الرشيدى 1/4 كيلو",null,"لبان كولريتس"]
[null,null,null,"فل زجاج",null,null,"حلاوة طحينية الرشيدى 1/2 كيلو",null,"لبان تشيكلتس"]
[null,null,null,"بريل زجاج",null,null,"حلاوة طحينية الرشيدى ( 2 جنية )",null,"لبان ترايدينت"]
[null,null,null,"بريل كيس 45 جرام",null,null,"حلاوة طحينية الطيبات 200 جرام"]
[null,null,null,"بريل كيس 35 جرام",null,null,"حلاوة طحينية الطيبات 400 جرام"]
[null,null,null,"كلوروكس  زجاج الوان",null,null,"حلاوة طحينية الطيبات 2 كيلو"]
[null,null,null,"كلوروكس  زجاج عادى ايبكو",null,null,"حلاوة طحينية الاصلى  (2 جنية )"]
[null,null,null,"كلوروكس كيس أبيض",null,null,"طحينة 250 جرام"]
[null,null,null,"كلوروكس كيس الوان",null,null,"طحينة 500 جرام"]
[null,null,null,"فلاش العاشر ",null,null,"طحينة  جردل"]
[null,null,null,"فلاش مستر شاهين ",null,null,"سكر كامل"]
[null,null,null,"بيروسول رش زجاج",null,null,"سكر ناقص"]
[null,null,null,"بيروسول اقراص ",null,null,"ملح الخير"]
[null,null,null,"بيروسول اقراص - علبة",null,null,"مكرونة مكرونيتو"]
[null,null,null,null,null,null,"مكرونة وصايا"]
[null,null,null,null,null,null,"لانشون 3 كيلو"]
[null,null,null,null,null,null,"لانشون 4 كيلو"]
[null,null,null,null,null,null,"خل عادى "]
[null,null,null,null,null,null,"خل الخير "]
[null,null,null,null,null,null,"خل ست البيت "]
[null,null,null,null,null,null,"مربى فيتراك 1/2 ك - عرض"]
[null,null,null,null,null,null,"مايونيز ديوباك"]
[null,null,null,null,null,null,"مايونيز هاينز ظرف 271"]

{"sheet":"البيع","index":1,"n_rows":5,"n_cols":10,"rows_kept":5,"cut":false,"hidden":false,"merged":[]}
[]
["التاريـــــــــــــــــــــــــــــــــــــــــــخ","نوع الفاتورة","رقم الفاتورة","اســــــــــــــــــــــــم العميــــــــــــــــــل","الرقم","نوع الصنف","اســــــــــــــــــــــــــــــــــــــــــــــــــــــــــــــــم الصـــــــــــــــنـــــــــــــــــــــــف","الكمية","سعر\n الوحدة","السعر الإجمالي"]
[null,null,null,null,null,null,null,null,null,{"$f":"I3*H3","v":0}]
[null,null,null,null,null,null,null,null,null,{"$f":"I4*H4","v":0}]
[null,null,null,null,null,null,null,null,null,0]

{"sheet":"فاتورة","index":2,"n_rows":44,"n_cols":11,"rows_kept":44,"cut":false,"hidden":false,"merged":[[10,4,10,5],[40,0,40,1],[43,0,43,1]]}
[]
[null,null,null,null,null,null,null,null,null,1,"مطلوب عمل قائمة منسدلة ديناميكية  لنوع الصنف ."]
[null,null,null,null,null,null,null,null,null,2,"مطلوب عمل قائمة منسدلة ديناميكية بأسم الصنف مرتبطة بنوع الصنف ."]
[null,null,null,null,null,null,null,null,null,3,"المطلوب عند الضغط على زر الترحيل يتم ترحيل بيانات الفاتورة الى شيت البيع ."]
[null,null,null,null,null,null,null,null,null,4,"مطلوب سيريل لرقم الفاتورة يتم تغيرة اتوماتيك بعد الترحيل ."]
[]
[]
[]
["التاريخ","2021-03-23",null,"نوع الفاتورة"]
[]
["رقم الفاتورة",null,null,"اسم العميل",""]
[]
[]
["الرقم","نوع الصنف","اسم الصنف","الكمية","سعر الوحدة","السعر الإجمالي"]
[1,"مقرمشات وتسالى",null,null,null,{"$f":"E15*D15","v":0}]
[2,null,null,null,null,{"$f":"E16*D16","v":0}]
[3,null,null,null,null,0]
[4,null,null,null,null,0]
[5,null,null,null,null,0]
[6,null,null,null,null,0]
[7,null,null,null,null,0]
[8,null,null,null,null,0]
[9,null,null,null,null,0]
[10,null,null,null,null,0]
[11,null,null,null,null,0]
[12,null,null,null,null,0]
[13,null,null,null,null,0]
[14,null,null,null,null,0]
[15,null,null,null,null,0]
[16,null,null,null,null,0]
[17,null,null,null,null,0]
[18,null,null,null,null,0]
[19,null,null,null,null,0]
[20,null,null,null,null,0]
[21,null,null,null,null,0]
[22,null,null,null,null,0]
[23,null,null,null,null,0]
[24,null,null,null,null,0]
[25,null,null,null,null,0]
[]
["الاجمالى ",null,null,null,null,{"$f":"SUM(F15:F39)","v":0}]
[null,null,null,null,"الخصم  %",10]
[null,null,null,null,null,{"$f":"F41/100*F42","v":0}]
["الصافى",null,{"$f":"F41-F43","v":0}]